Cogmind - Beta 12 @@@ ROGUE MODE // 2023.12.02 @ 21:17:38 Player: wchar_t Result: Self-destructed Performance ------------- Evolutions (5) 2500 Regions Visited (18) 3600 Robots Destroyed (191) 955 Value Destroyed (9256) 9256 Prototype IDs (35) 700 Alien Tech Used (0) 0 Bonus (9017) 9017 TOTAL SCORE: 26028 Bonus ------- High Alert Combat Kills 2110 Follower Combat Kills 2606 Entered Garrisons 800 Used RIF Installer 2500 Aligned with FarCom 300 Built Enhanced Grunts 300 A7 Reached Mainframe 300 Met R17 at Cetus 500 Friendly Fire -399 Cogmind --------- Core Integrity 1000/1000 Matter 300/300 Energy 400/400 System Corruption 0% Temperature Cool (0) Movement Treading (160) Location -5/Factory Parts ------- > --- POWER (2) -------- Micro Fission Core Quantum Reactor > --- PROPULSION (5) --- Improved Heavy Treads Centrium Heavy Treads > --- UTILITY (8) ------ Improved Cooling System High-capacity Storage Unit Core Analyzer Quantum Capacitor Advanced Transmission Jammer Centrium Medium Armor Plating Relay Coupler [Sentry] (22) > --- WEAPON (2) ------- Advanced Plasma Cannon Advanced KE Penetrator > --- INVENTORY (20) --- Reinforced Quantum Reactor Centrium Heavy Treads Advanced Cooling System Improved Phase Shifter Layered Medium Armor Plating Centrium Medium Armor Plating Relay Coupler [NC] (35) Relay Coupler [Grunt] (25) Relay Coupler [Specialist] (21) Sensor Drone Bay (20/20) Advanced Variable Charge Gun Bore Cannon Improved Proton Missile Launcher Heavy Missile Launcher Remote Datajack Deploy-a-Sentry Deploy-a-Sentry Deploy-a-Sentry Peak State ------------ > --- POWER ------------ Micro Fission Core Quantum Reactor > --- PROPULSION ------- Light Treads Improved Heavy Treads Centrium Heavy Treads > --- UTILITY ---------- Improved Cooling System High-capacity Storage Unit Core Analyzer Quantum Capacitor Advanced Transmission Jammer Centrium Medium Armor Plating Relay Coupler [Sentry] > --- WEAPON ----------- Advanced Plasma Cannon Advanced KE Penetrator > --- INVENTORY -------- Reinforced Quantum Reactor Centrium Heavy Treads Improved Phase Shifter Layered Medium Armor Plating Centrium Medium Armor Plating Relay Coupler [NC] Relay Coupler [Grunt] Relay Coupler [Specialist] Sensor Drone Bay Advanced Variable Charge Gun Bore Cannon Improved Proton Missile Launcher Heavy Missile Launcher Remote Datajack Deploy-a-Sentry Deploy-a-Sentry Deploy-a-Sentry [Rating: 116] Favorites ----------- Power Light Nuclear Core Engine Light Ion Engine Power Core Light Nuclear Core Reactor Quantum Reactor Propulsion Aluminum Leg Treads Light Treads Leg Aluminum Leg Wheel Armored Wheel Utility High-capacity Storage Unit Device Improved Heat Sink Storage High-capacity Storage Unit Processor Advanced Targeting Computer Hackware Relay Coupler [Sentry] Protection Improved Medium Armor Plating Weapon Heavy Ion Cannon Energy Gun Beam Rifle Energy Cannon Heavy Ion Cannon Ballistic Gun Improved Assault Rifle Ballistic Cannon Heavy Assault Cannon Launcher Grenade Launcher Special Weapon Remote Datajack Impact Weapon Great Maul Build | -11 -10 -10 -9 -9 -9 -8 -8 -8 -8 -8 -7 -7 -7 -7 -6 -6 -6 -5 ------- Run | Jun Mat Min Mat Min Exi Min Mat Gar Mat Gar Fac Gar Fac Gar Fac Ext Cet Fac Slots Evolved 10 | . . . 2 . . . 2 . . . 2 . . . 2 . . 2 Power 1 | . . . . . . . . . . . . . . . . . . 1 Propulsion 3 | . . . 1 . . . 1 . . . 1 . . . . . . . Utility 6 | . . . 1 . . . 1 . . . 1 . . . 2 . . 1 Weapon . | . . . . . . . . . . . . . . . . . . . Parts Attached 219 | 6 . 2 13 4 . . 31 21 6 8 27 32 1 33 10 14 7 4 Power 22 | 1 . . 2 1 . . 3 3 . 1 3 1 . 5 . . 1 1 Engine 9 | 1 . . 2 1 . . 2 . . . 1 . . 2 . . . . Core 11 | . . . . . . . 1 3 . 1 2 1 . 2 . . . 1 Reactor 2 | . . . . . . . . . . . . . . 1 . . 1 . Propulsion 59 | 2 . . 3 2 . . 16 4 3 3 10 5 1 2 4 3 1 . Treads 10 | . . . 2 . . . . . . . 1 . 1 2 . 3 1 . Leg 43 | 2 . . 1 2 . . 16 4 3 3 6 4 . . 2 . . . Wheel 6 | . . . . . . . . . . . 3 1 . . 2 . . . Hover . | . . . . . . . . . . . . . . . . . . . Flight . | . . . . . . . . . . . . . . . . . . . Utility 58 | 1 . . 5 1 . . 6 3 . 2 8 15 . 8 2 4 1 2 Device 26 | . . . 2 1 . . 1 . . . 7 7 . 4 1 2 . 1 Storage 4 | 1 . . 1 . . . 2 . . . . . . . . . . . Processor 3 | . . . 1 . . . 1 . . . . . . . . . . 1 Hackware 6 | . . . . . . . . . . . . 4 . 2 . . . . Protection 19 | . . . 1 . . . 2 3 . 2 1 4 . 2 1 2 1 . Artifact . | . . . . . . . . . . . . . . . . . . . Weapon 80 | 2 . 2 3 . . . 6 11 3 2 6 11 . 18 4 7 4 1 Energy Gun 5 | . . . 1 . . . 3 . . . . . . . . . 1 . Energy Cannon 24 | . . . . . . . 1 . 1 . 5 6 . 6 1 3 . 1 Ballistic Gun 8 | 2 . 2 2 . . . 1 . . . . . . . . . 1 . Ballistic Cannon 16 | . . . . . . . 1 5 1 . 1 . . 5 1 1 1 . Launcher 11 | . . . . . . . . 3 1 2 . . . 3 1 1 . . Special Weapon 7 | . . . . . . . . . . . . 4 . . . 2 1 . Impact Weapon 9 | . . . . . . . . 3 . . . 1 . 4 1 . . . Slashing Weapon . | . . . . . . . . . . . . . . . . . . . Piercing Weapon . | . . . . . . . . . . . . . . . . . . . Special Melee Weapon . | . . . . . . . . . . . . . . . . . . . Unidentified Prototypes 12 | . . . 2 1 . . 1 . . . 2 1 . 1 . . 4 . Corrupted Parts 2 | . . . . . . . . . . . . . . . . . 2 . System Corruption 17 | . . . . . . . . . . . . . . . . . 17 . Parts Lost 52 | . . . 4 2 . . 11 2 1 6 . 7 . 4 7 3 4 1 Power 11 | . . . 2 . . . 3 2 . 1 . 1 . 1 . . 1 . Propulsion 21 | . . . 2 1 . . 4 . . 1 . 4 . 1 3 3 1 1 Utility 11 | . . . . 1 . . 2 . 1 2 . 1 . 1 2 . 1 . Weapon 9 | . . . . . . . 2 . . 2 . 1 . 1 2 . 1 . Highest Loss Streak 8 | . . . 3 1 . . 8 1 1 2 . 7 . 2 3 1 3 1 To Critical Strikes 2 | . . . . . . . . . . . . . . . . 1 1 . Average Slot Usage (%) 88 | . 85 85 83 94 100 100 96 88 96 83 95 94 97 87 70 85 79 74 Engine 3 | . 14 14 7 9 11 11 4 . . . . . . 1 6 6 2 . Core 4 | . . . . . . . 4 8 9 8 7 6 7 4 . . . 2 Treads 4 | . . . 9 . . . . . . . 4 . 5 11 7 18 19 16 Leg 22 | . 28 28 16 31 33 33 35 35 36 34 25 11 30 19 2 6 . . Wheel 3 | . . . . . . . . . . . 7 23 . . 10 . . . Device 8 | . . . 9 18 22 22 9 9 7 . 12 6 7 5 4 12 13 12 Storage 8 | . 14 14 11 11 11 11 9 9 9 9 7 7 7 7 6 6 6 5 Processor 4 | . . . 1 . . . 8 9 9 9 7 5 . . . . . 2 Hackware 4 | . . . . . . . . . . . . 8 15 15 13 13 6 5 Protection 6 | . . . 4 . . . 8 8 9 6 6 6 7 5 4 7 13 9 Energy Gun 2 | . . . 4 11 11 11 7 . . . . . . . . . 3 3 Energy Cannon 5 | . . . . . . . 3 . 7 8 14 12 15 9 5 4 1 1 Ballistic Gun 2 | . 28 28 17 11 11 11 4 . . . . . . . . . 3 5 Ballistic Cannon 2 | . . . . . . . . 7 7 . . . . 2 4 5 . . Naked Turns . | . . . . . . . . . . . . . . . . . . . Heaviest Build 95 | 10 10 10 27 34 34 34 63 63 62 63 87 76 69 89 93 92 86 95 Greatest Support 175 | 20 20 20 40 33 33 33 65 65 55 50 75 75 75 95 95 115 175 175 Greatest Overweight (x) 17 | . . . 1 1 1 1 1 17 1 2 6 3 . 1 7 6 . . Average Overweight (x) . | . . . . . 1 1 . . 1 1 1 . . . 2 . . . Largest Inventory Capacity 20 | 8 8 8 10 10 10 10 20 20 20 20 20 20 20 20 20 20 20 20 Average Capacity 17 | 6 8 8 9 10 10 10 14 20 20 20 20 20 20 20 20 20 20 20 Most Carried 20 | 3 3 8 10 10 9 9 16 20 20 20 20 20 20 20 20 18 19 20 Average Carried 16 | 1 3 6 9 9 8 9 13 19 19 19 19 19 20 19 19 15 17 18 Final Capacity 20 | 8 8 8 10 10 10 10 20 20 20 20 20 20 20 20 20 20 20 20 Final Carried 20 | 3 3 8 10 9 9 9 16 20 20 20 20 20 20 20 18 16 19 19 Class Distribution -------------------- 46% | Scavenger-Mutant 33% | Bothacker-Mutant 18% | Mutant Dominant Class ---------------- Mutant | -10/Materials Mutant | -10/Mines Mutant | -9/Materials Scavenger-Mutant | -9/Mines Scavenger-Mutant | -9/Exiles Scavenger-Mutant | -8/Mines Scavenger-Mutant | -8/Materials Scavenger-Mutant | -8/Garrison Scavenger-Mutant | -8/Materials Scavenger-Mutant | -8/Garrison Mutant | -7/Factory Mutant | -7/Garrison Bothacker-Mutant | -7/Factory Bothacker-Mutant | -7/Garrison Bothacker-Mutant | -6/Factory Bothacker-Mutant | -6/Extension Bothacker-Mutant | -6/Cetus Bothacker-Mutant | -5/Factory Resources | -11 -10 -10 -9 -9 -9 -8 -8 -8 -8 -8 -7 -7 -7 -7 -6 -6 -6 -5 ----------- Run | Jun Mat Min Mat Min Exi Min Mat Gar Mat Gar Fac Gar Fac Gar Fac Ext Cet Fac Matter Collected 4871 | 186 . 87 124 64 . . 574 821 133 281 448 353 . 492 278 737 182 111 Remotely . | . . . . . . . . . . . . . . . . . . . Salvage Created 7008 | . . 87 278 112 . . 1247 476 147 369 401 698 . 1444 906 499 72 272 Parts 368 | . . 11 15 13 . . 57 32 6 18 22 39 . 58 60 27 . 10 Haulers Intercepted 7 | . . . 1 . . . 2 . . . 1 . . . 3 . . . Recyclers Shooed 1 | . . . . . . . 1 . . . . . . . . . . . Parts Field Recycled . | . . . . . . . . . . . . . . . . . . . Retrieved Matter . | . . . . . . . . . . . . . . . . . . . Parts Self-Destructed . | . . . . . . . . . . . . . . . . . . . Prevented . | . . . . . . . . . . . . . . . . . . . Kills | -11 -10 -10 -9 -9 -9 -8 -8 -8 -8 -8 -7 -7 -7 -7 -6 -6 -6 -5 ------- Run | Jun Mat Min Mat Min Exi Min Mat Gar Mat Gar Fac Gar Fac Gar Fac Ext Cet Fac Combat Hostiles Destroyed 170 | . . 6 5 8 . . 23 30 3 13 7 12 . 23 22 12 1 5 Melee 1 | . . . . . . . . 1 . . . . . . . . . . Guns 33 | . . 6 5 8 . . 12 . . . . . . . . . . 2 Cannons 90 | . . . . . . . 10 17 3 4 5 8 . 15 15 10 . 3 AOE 37 | . . . . . . . . 12 . 9 . . . 7 7 2 . . Classes Destroyed 14 | . . 1 4 . . . 2 4 . . . 1 . . 2 . . . Worker 4 | . . . . . . . . . . . . . . . 4 . . . Builder 4 | . . . . . . . . . . . . . . . 3 1 . . Hauler 7 | . . . 1 . . . 2 . . . 1 . . . 3 . . . Mechanic 1 | . . . . . . . 1 . . . . . . . . . . . Watcher 3 | . . . 1 . . . 1 . . . 1 . . . . . . . Swarmer 59 | . . 6 . 8 . . 2 15 . 3 . 4 . 11 10 . . . Saboteur 1 | . . . . . . . . 1 . . . . . . . . . . Grunt 52 | . . . 4 . . . 12 4 2 9 2 5 . 4 5 4 . 1 Brawler 5 | . . . . . . . . 3 . . 1 . . 1 . . . . Duelist 4 | . . . . . . . . 1 . . . 1 . . . 2 . . Sentry 20 | . . . 1 . . . 7 3 1 1 . 1 . 1 1 4 . . Specialist 4 | . . . . . . . . . . . . 1 . 2 . . . 1 Hunter 8 | . . . . . . . 2 . . . 1 1 . 1 2 . . 1 Programmer 18 | . . . . . . . . 3 . . 3 1 . 3 4 2 . 2 Cetus Guard 1 | . . . . . . . . . . . . . . . . . 1 . Best Kill Streak 10 | . . 3 2 3 . . 3 5 2 4 2 3 . 9 10 4 1 4 Combat Bots Only 9 | . . 3 2 3 . . 3 5 2 4 2 3 . 9 8 3 1 4 Max Kills in Single Turn 5 | . . 2 1 2 . . 1 3 1 2 1 1 . 3 5 3 1 1 Gunslinging 1 | . . . . 1 . . . . . . . . . . . . . . Exploded 3 | . . . . . . . . 3 . 2 . . . 2 3 2 . . Melee 1 | . . . . . . . . 1 . . . . . . . . . . Uniques/NPCs Destroyed . | . . . . . . . . . . . . . . . . . . . Combat | -11 -10 -10 -9 -9 -9 -8 -8 -8 -8 -8 -7 -7 -7 -7 -6 -6 -6 -5 -------- Run | Jun Mat Min Mat Min Exi Min Mat Gar Mat Gar Fac Gar Fac Gar Fac Ext Cet Fac Damage Taken 12086 | . . 378 505 271 . . 1733 719 320 736 420 1329 . 1650 2127 794 500 604 Core 1427 | . . 91 98 30 . . 222 87 37 55 45 192 . 229 263 46 32 . Absorbed by Shields 819 | . . . . . . . . . . . . 594 . . . 121 104 . Core Remaining (%) 58 | 100 . 63 . . . 68 . . . 27 . . . 33 . . 59 . Volleys Fired 691 | . . 26 28 19 . . 88 84 12 51 30 67 . 99 78 78 12 19 Largest 2 | . . 2 2 2 . . 2 1 2 1 2 2 . 2 2 2 1 2 Hottest 145 | . . 40 79 79 . . 99 60 74 90 145 145 . 145 118 113 60 133 Shots Fired 1064 | . . 52 56 38 . . 163 88 18 54 51 119 . 173 108 94 12 38 Gun 284 | . . 52 56 38 . . 112 . . . . . . . . . . 26 Cannon 706 | . . . . . . . 51 78 18 39 51 115 . 169 105 57 11 12 Launcher 40 | . . . . . . . . 10 . 15 . . . 4 3 8 . . Special 34 | . . . . . . . . . . . . 4 . . . 29 1 . Kinetic 366 | . . 52 42 19 . . 53 78 6 . . . . 24 43 26 4 19 Thermal 624 | . . . 14 19 . . 110 . 12 39 51 115 . 145 62 31 7 19 Explosive 40 | . . . . . . . . 10 . 15 . . . 4 3 8 . . Electromagnetic . | . . . . . . . . . . . . . . . . . . . Robot Hit Streak 27 | . . 4 12 7 . . 15 8 5 12 12 17 . 27 8 10 8 9 Robot Miss Streak 9 | . . 4 3 5 . . 3 6 3 2 2 3 . 4 9 4 2 1 Penetration Max 1 | . . . . . . . . . . . . . . . . . . 1 Secondary Targets 3 | . . 1 . 2 . . . . . . . . . . . . . . Max Gunslinging Chain 1 | . . 1 . 1 . . . . . . . . . . . . . . Shots Hit Robots 703 | . . 24 44 18 . . 124 47 15 35 33 75 . 122 64 63 11 28 Core Hits 404 | . . 9 12 9 . . 51 29 7 26 10 25 . 63 85 60 7 11 Critical Kills 7 | . . . . . . . . . . . 1 2 . 3 1 . . . Critical Parts Destroyed 1 | . . . . . . . . . . . . . . . . . . 1 Critical Strikes 25 | . . . 1 3 . . 2 11 . . 1 2 . 3 1 . . 1 Burn 5 | . . . 1 3 . . 1 . . . . . . . . . . . Meltdown 5 | . . . . . . . . . . . 1 1 . 3 . . . . Destroy 1 | . . . . . . . . . . . . . . . . . . 1 Blast 12 | . . . . . . . 1 11 . . . . . . . . . . Smash 2 | . . . . . . . . . . . . 1 . . 1 . . . Melee Attacks 34 | . . . . . . . . 7 . . . 19 . 7 1 . . . Impact 34 | . . . . . . . . 7 . . . 19 . 7 1 . . . Slashing . | . . . . . . . . . . . . . . . . . . . Piercing . | . . . . . . . . . . . . . . . . . . . Sneak Attacks 4 | . . . . . . . . . . . . 3 . . 1 . . . Combat Hostiles 1 | . . . . . . . . . . . . 1 . . . . . . Follow-up Attacks . | . . . . . . . . . . . . . . . . . . . Damage Inflicted 21744 | . . 232 570 263 . . 2552 3143 383 1595 921 2140 . 4009 3203 1502 292 939 Guns 3036 | . . 227 570 260 . . 1415 . . . . . . . . . . 564 Cannons 13974 | . . . . . . . 1071 2293 374 807 910 1888 . 3188 1720 1056 292 375 Explosions 4305 | . . . . . . . . 840 . 788 . . . 821 1410 446 . . Melee 306 | . . . . . . . . . . . . 240 . . 66 . . . Ramming 123 | . . 5 . 3 . . 66 10 9 . 11 12 . . 7 . . . Kinetic 6072 | . . 227 409 131 . . 715 2293 74 . . . . 314 772 622 155 360 Thermal 11621 | . . . 161 129 . . 1771 . 300 807 910 1888 . 2874 1631 434 137 579 Explosive 3622 | . . . . . . . . 840 . 788 . . . 821 727 446 . . Electromagnetic . | . . . . . . . . . . . . . . . . . . . Impact 306 | . . . . . . . . . . . . 240 . . 66 . . . Slashing . | . . . . . . . . . . . . . . . . . . . Piercing . | . . . . . . . . . . . . . . . . . . . Highest Corruption 18 | . . . . . . . . 4 4 4 2 2 2 3 1 1 18 . Average Corruption 3 | . . . . . . . . 3 4 4 1 2 2 2 1 1 11 . Corruption Purged . | . . . . . . . . . . . . . . . . . . . Corruption Blocked . | . . . . . . . . . . . . . . . . . . . Effects 175 | . . . . . . . . 41 5 38 8 27 1 23 1 7 24 . Message Errors 48 | . . . . . . . . 8 1 9 2 7 . 10 1 2 8 . Matter Fused 50 | . . . . . . . . 12 3 11 2 7 . 9 . 1 5 . Heat Flow Errors 14 | . . . . . . . . 4 . 3 . 4 . 1 . . 2 . Energy Discharges 14 | . . . . . . . . 2 1 1 2 3 . 1 . 2 2 . Parts Rejected 3 | . . . . . . . . . . 2 . . . 1 . . . . Parts Fused 1 | . . . . . . . . . . . . . . . . . 1 . Data Loss (minor) 25 | . . . . . . . . 8 . 6 1 4 1 1 . 2 2 . Data Loss (major) 6 | . . . . . . . . 3 . . . . . . . . 3 . Misfires 9 | . . . . . . . . 4 . 4 . 1 . . . . . . Alerts 3 | . . . . . . . . . . 1 1 1 . . . . . . Misdirections 1 | . . . . . . . . . . . . . . . . . 1 . Weapon Failures 1 | . . . . . . . . . . 1 . . . . . . . . Overload Shots 4 | . . . . . . . . . . 4 . . . . . . . . Overflow Damage 404 | . . . . . . . . 197 . 50 10 12 . 36 99 . . . Projectiles 262 | . . . . . . . . 197 . 24 10 . . 23 8 . . . Explosions 130 | . . . . . . . . . . 26 . . . 13 91 . . . Melee 12 | . . . . . . . . . . . . 12 . . . . . . Knockbacks 59 | . . . . . . . 1 11 2 . . . . 7 32 4 2 . Impact . | . . . . . . . . . . . . . . . . . . . Kinetic 55 | . . . . . . . 1 11 2 . . . . 7 28 4 2 . Secondary 4 | . . . . . . . . . . . . . . . 4 . . . Self-Inflicted Damage 566 | . . . . . . . . 24 . 61 . 6 . . 475 . . . Shots 10 | . . . . . . . . 2 . 3 . . . . 5 . . . Rammed 2 | . . . . . . . . . . . . 1 . . 1 . . . Targets Rammed 20 | . . 3 . 1 . . 9 2 1 . 2 1 . . 1 . . . Kicked 18 | . . 3 . 1 . . 9 2 1 . 2 . . . . . . . Crushed . | . . . . . . . . . . . . . . . . . . . Highest Temperature 473 | . . . 182 . . . 135 159 29 268 473 408 . 448 210 11 154 45 Average Temperature 76 | . . . 79 . . . 45 15 5 60 122 101 . 90 71 4 89 32 Received Heat Transfer 2478 | . . . 249 . . . 648 126 189 351 72 258 . 108 63 230 45 139 Effects 6 | . . . . . . . . . . . 1 2 . 3 . . . . Shutdowns 3 | . . . . . . . . . . . 1 1 . 1 . . . . Energy Bleed 3 | . . . . . . . . . . . . 1 . 2 . . . . Siege Activations . | . . . . . . . . . . . . . . . . . . . Robots Corrupted . | . . . . . . . . . . . . . . . . . . . Combat Hostiles . | . . . . . . . . . . . . . . . . . . . Parts Fried . | . . . . . . . . . . . . . . . . . . . Impact Corruptions 2 | . . . . . . . . . . . . 2 . . . . . . Robots Melted 10 | . . . . . . . 1 . . . 2 3 . 3 . . 1 . Combat Hostiles 8 | . . . . . . . 1 . . . 2 3 . 1 . . 1 . Parts Melted 32 | . . . 3 1 . . 9 . . 1 3 4 . 9 . 1 1 . Heat Transferred 18054 | . . . 481 555 . . 3219 . 407 1018 1416 2753 . 4750 1758 666 222 809 Parts Sabotaged 6 | . . . . . . . . 6 . . . . . . . . . . Parts Stolen . | . . . . . . . . . . . . . . . . . . . Parts Stripped . | . . . . . . . . . . . . . . . . . . . Power Chain Reactions . | . . . . . . . . . . . . . . . . . . . Missiles Intercepted . | . . . . . . . . . . . . . . . . . . . Alert | -11 -10 -10 -9 -9 -9 -8 -8 -8 -8 -8 -7 -7 -7 -7 -6 -6 -6 -5 ------- Run | Jun Mat Min Mat Min Exi Min Mat Gar Mat Gar Fac Gar Fac Gar Fac Ext Cet Fac Peak Influence 1557 | . . 200 204 239 . . 225 1557 758 892 537 1253 656 1429 1070 1360 970 1169 Initial 761 | . . . 78 79 . . . 124 758 259 468 235 656 459 749 524 761 536 Average 626 | . . 133 123 131 . . 88 910 512 538 437 871 656 1008 747 732 869 955 Maximum Alert Level 4 | . . 1 1 1 . . 1 4 3 3 2 4 2 4 3 4 3 4 Low Security (%) 18 | 100 100 59 78 59 . 100 94 2 . . . . . . . . . . Level 1 12 | . . 40 21 40 . . 5 11 58 20 18 16 . . . . . . Level 2 30 | . . . . . . . . 20 16 56 81 18 100 28 48 65 . 21 Level 3 24 | . . . . . . . . 28 25 22 . 30 . 29 51 24 100 43 Level 4 14 | . . . . . . . . 36 . . . 35 . 42 . 9 . 34 Level 5 . | . . . . . . . . . . . . . . . . . . . High Security . | . . . . . . . . . . . . . . . . . . . Max Security . | . . . . . . . . . . . . . . . . . . . Squads Dispatched 34 | . 1 . 1 . . . 5 . 1 . 6 . . . 9 5 . 6 Investigation 4 | . . . . . . . 3 . . . . . . . . 1 . . Extermination 7 | . . . . . . . . . . . 3 . . . 3 . . 1 Reinforcement 14 | . 1 . 1 . . . 2 . . . 3 . . . 3 1 . 3 Assault 4 | . . . . . . . . . . . . . . . . 3 . 1 Garrison 5 | . . . . . . . . . 1 . . . . . 3 . . 1 Intercept . | . . . . . . . . . . . . . . . . . . . Searches Triggered . | . . . . . . . . . . . . . . . . . . . Construction Impeded 3 | . . . . . . . . . . . . . . . 2 1 . . Haulers Reinforced 1 | . . . . . . . . . . . 1 . . . . . . . Active Scanning Responses . | . . . . . . . . . . . . . . . . . . . Cargo Convoy Interrupts . | . . . . . . . . . . . . . . . . . . . Stealth | -11 -10 -10 -9 -9 -9 -8 -8 -8 -8 -8 -7 -7 -7 -7 -6 -6 -6 -5 --------- Run | Jun Mat Min Mat Min Exi Min Mat Gar Mat Gar Fac Gar Fac Gar Fac Ext Cet Fac Distress Signals 15 | . . . 1 . . . 4 . 3 . . . . . 3 2 2 . Communications Jammed 206 | . . . . . . . . . . . . . . . . . 206 . Distress Signals 206 | . . . . . . . . . . . . . . . . . 206 . Times Spotted 311 | . 1 8 8 7 . . 33 38 9 17 14 32 . 25 31 50 18 20 Peak Tracking Total 9 | . 1 3 2 3 . . 4 6 6 5 3 4 . 7 9 7 7 6 Tactical Retreats 21 | . . 1 . . . . 1 5 1 6 1 . . 4 1 . . 1 Traps | -11 -10 -10 -9 -9 -9 -8 -8 -8 -8 -8 -7 -7 -7 -7 -6 -6 -6 -5 ------- Run | Jun Mat Min Mat Min Exi Min Mat Gar Mat Gar Fac Gar Fac Gar Fac Ext Cet Fac Traps Triggered 25 | . . . . . . . 2 5 . 4 2 12 . . . . . . Indirectly . | . . . . . . . . . . . . . . . . . . . Trap Hack Attempts . | . . . . . . . . . . . . . . . . . . . Triggered . | . . . . . . . . . . . . . . . . . . . Disarmed . | . . . . . . . . . . . . . . . . . . . Reprogrammed . | . . . . . . . . . . . . . . . . . . . Reused . | . . . . . . . . . . . . . . . . . . . Traps Extracted . | . . . . . . . . . . . . . . . . . . . Installed . | . . . . . . . . . . . . . . . . . . . Triggered . | . . . . . . . . . . . . . . . . . . . Most Traps Carried 2 | . . 2 2 2 2 . . . . . . . . . . . . . Machines | -11 -10 -10 -9 -9 -9 -8 -8 -8 -8 -8 -7 -7 -7 -7 -6 -6 -6 -5 ---------- Run | Jun Mat Min Mat Min Exi Min Mat Gar Mat Gar Fac Gar Fac Gar Fac Ext Cet Fac Machines Disabled 29 | . . . . . . . . 7 . 1 1 5 . 5 6 3 . 1 Max in Single Turn 4 | . . . . . . . . 1 . 1 1 1 . 1 4 1 . . Garrison Access 1 | . . . . . . . . . . . . . . . 1 . . . Garrison Relay 11 | . . . . . . . . 4 . . . 5 . 2 . . . . Machines Repaired . | . . . . . . . . . . . . . . . . . . . Machines Sabotaged . | . . . . . . . . . . . . . . . . . . . Overloaded Fab Kills . | . . . . . . . . . . . . . . . . . . . Hacking | -11 -10 -10 -9 -9 -9 -8 -8 -8 -8 -8 -7 -7 -7 -7 -6 -6 -6 -5 --------- Run | Jun Mat Min Mat Min Exi Min Mat Gar Mat Gar Fac Gar Fac Gar Fac Ext Cet Fac Machines Accessed 39 | . . . 1 1 2 . 5 3 3 2 5 1 1 3 4 7 1 . Terminals 31 | . . . 1 . . . 4 3 2 2 4 1 . 3 3 7 1 . Fabricators . | . . . . . . . . . . . . . . . . . . . Repair Stations . | . . . . . . . . . . . . . . . . . . . Recycling Units . | . . . . . . . . . . . . . . . . . . . Scanalyzers . | . . . . . . . . . . . . . . . . . . . Garrison Access 5 | . . . . . . . 1 . 1 . 1 . 1 . 1 . . . Total Hacks 78 | . . . 4 1 2 . 13 9 9 3 10 1 1 5 5 13 2 . Successful 35 | . . . 1 1 2 . 2 2 6 1 6 1 1 2 3 6 1 . Failed 43 | . . . 3 . . . 11 7 3 2 4 . . 3 2 7 1 . Catastrophic 13 | . . . . . . . 2 2 1 1 1 . . 1 2 3 . . Database Lockouts . | . . . . . . . . . . . . . . . . . . . Manual 28 | . . . 4 . 1 . 12 . 3 . 6 . . . 1 . 1 . Terminals 69 | . . . 4 . . . 11 9 8 3 9 1 . 5 4 13 2 . Fabricators . | . . . . . . . . . . . . . . . . . . . Repair Stations . | . . . . . . . . . . . . . . . . . . . Recycling Units . | . . . . . . . . . . . . . . . . . . . Scanalyzers . | . . . . . . . . . . . . . . . . . . . Garrison Access 6 | . . . . . . . 2 . 1 . 1 . 1 . 1 . . . Terminal Hacks 23 | . . . . 1 2 . . 2 4 1 1 1 . 2 2 6 1 . Record 1 | . . . . . 1 . . . . . . . . . . . . . Open Door 8 | . . . . 1 . . . . . . . . . . 1 5 1 . Emergency Access Points 3 | . . . . . . . . 1 . . . 1 . 1 . . . . Unreport Threat 5 | . . . . . . . . . 3 . . . . . 1 1 . . Hauler Manifests 1 | . . . . . . . . . . . 1 . . . . . . . Zone Layout 1 | . . . . . . . . . 1 . . . . . . . . . Garrison Registry 1 | . . . . . . . . . . . . . . 1 . . . . Patrol Navigation 2 | . . . . . . . . 1 . 1 . . . . . . . . EX-Prototype ID Bank 1 | . . . . . 1 . . . . . . . . . . . . . Fabricator Hacks . | . . . . . . . . . . . . . . . . . . . Repair Station Hacks . | . . . . . . . . . . . . . . . . . . . Recycling Unit Hacks . | . . . . . . . . . . . . . . . . . . . Scanalyzer . | . . . . . . . . . . . . . . . . . . . Garrison Access Hacks 5 | . . . . . . . 1 . 1 . 1 . 1 . 1 . . . Unlock Access 4 | . . . . . . . 1 . 1 . 1 . 1 . . . . . Seal Access 1 | . . . . . . . . . . . . . . . 1 . . . Unauthorized Hacks 7 | . . . 1 . . . 1 . 1 . 4 . . . . . . . Terminals 7 | . . . 1 . . . 1 . 1 . 4 . . . . . . . Track 1 | . . . . . . . . . . . 1 . . . . . . . Botnet 6 | . . . 1 . . . 1 . 1 . 3 . . . . . . . Fabricators . | . . . . . . . . . . . . . . . . . . . Repair Stations . | . . . . . . . . . . . . . . . . . . . Recycling Units . | . . . . . . . . . . . . . . . . . . . Scanalyzers . | . . . . . . . . . . . . . . . . . . . Garrison Access . | . . . . . . . . . . . . . . . . . . . Data Cores Recovered 1 | . . . . . . . . . . . . . . . . . . 1 Used . | . . . . . . . . . . . . . . . . . . . Hacking Detections 28 | . . . 1 . . . 5 3 2 2 3 1 1 3 2 4 1 . Full Trace Events 4 | . . . . . . . 1 2 . . . . . . . 1 . . Feedback Events . | . . . . . . . . . . . . . . . . . . . Feedback Blocked . | . . . . . . . . . . . . . . . . . . . Robot Schematics Acquired . | . . . . . . . . . . . . . . . . . . . Robots Built . | . . . . . . . . . . . . . . . . . . . Authchips . | . . . . . . . . . . . . . . . . . . . Time . | . . . . . . . . . . . . . . . . . . . Total Robot Build Rating . | . . . . . . . . . . . . . . . . . . . Part Schematics Acquired . | . . . . . . . . . . . . . . . . . . . Parts Built . | . . . . . . . . . . . . . . . . . . . Authchips . | . . . . . . . . . . . . . . . . . . . Time . | . . . . . . . . . . . . . . . . . . . Total Part Build Rating . | . . . . . . . . . . . . . . . . . . . Parts Repaired . | . . . . . . . . . . . . . . . . . . . Time . | . . . . . . . . . . . . . . . . . . . Parts Recycled . | . . . . . . . . . . . . . . . . . . . Recycled Matter . | . . . . . . . . . . . . . . . . . . . Retrieved Matter . | . . . . . . . . . . . . . . . . . . . Retrieved Components . | . . . . . . . . . . . . . . . . . . . Parts Scanalyzed . | . . . . . . . . . . . . . . . . . . . Part Schematics Acquired . | . . . . . . . . . . . . . . . . . . . Parts Damaged . | . . . . . . . . . . . . . . . . . . . Bothacking | -11 -10 -10 -9 -9 -9 -8 -8 -8 -8 -8 -7 -7 -7 -7 -6 -6 -6 -5 ------------ Run | Jun Mat Min Mat Min Exi Min Mat Gar Mat Gar Fac Gar Fac Gar Fac Ext Cet Fac Used RIF Installer 5 | . . . . . . . . 1 . 1 . 1 . 2 . . . . Signal Jammer 1 | . . . . . . . . . . 1 . . . . . . . . Robot Detection 1 | . . . . . . . . . . . . 1 . . . . . . Program Shield 1 | . . . . . . . . . . . . . . 1 . . . . Autoassimilate 1 | . . . . . . . . . . . . . . 1 . . . . Robots Hacked 8 | . . . . . . . . . . . . 4 . . . 4 . . Non-combat . | . . . . . . . . . . . . . . . . . . . Combat 8 | . . . . . . . . . . . . 4 . . . 4 . . Autoassimilated 2 | . . . . . . . . . . . . . . . . 2 . . Robot Hacks Applied 6 | . . . . . . . . . . . . 4 . . . 2 . . overwrite_iff 3 | . . . . . . . . . . . . 3 . . . . . . streamctrl_high 1 | . . . . . . . . . . . . 1 . . . . . . formatsys_high 2 | . . . . . . . . . . . . . . . . 2 . . Relay Couplers Released 48 | . . . . . . . . 18 . . . 22 . 8 . . . . Machine Destruction 48 | . . . . . . . . 18 . . . 22 . 8 . . . . Attached 6 | . . . . . . . . . . . . 4 . 2 . . . . Fabnet Peak Effective % . | . . . . . . . . . . . . . . . . . . . Robots Rewired 14 | . . . . . . . . . . . . . . . . 14 . . Allies Hacked . | . . . . . . . . . . . . . . . . . . . Hacks Repelled . | . . . . . . . . . . . . . . . . . . . Allies | -11 -10 -10 -9 -9 -9 -8 -8 -8 -8 -8 -7 -7 -7 -7 -6 -6 -6 -5 -------- Run | Jun Mat Min Mat Min Exi Min Mat Gar Mat Gar Fac Gar Fac Gar Fac Ext Cet Fac Total Allies 39 | . . . . 3 . . . . . . . 6 . . . 25 5 . Largest Group 17 | . . . . 3 3 3 3 . . . . 2 . . . 17 16 8 Highest-Rated Group 693 | . . . . 40 40 40 40 . . . . 142 . . . 693 672 672 Highest-Rated Ally 159 | . . . . 16 16 16 16 . . . . 80 . . . 159 159 143 Total Orders 13 | . . . . . . . 1 . . . 3 1 . . . 5 3 . STAY 5 | . . . . . . . . . . . . . . . . 3 2 . FOLLOW 3 | . . . . . . . . . . . . . . . . 2 1 . RETURN 5 | . . . . . . . 1 . . . 3 1 . . . . . . Ally Attacks 451 | . . . . . . . 15 . . . . 48 . . . 186 124 78 Total Damage 11545 | . . . . . . . 135 . . . . 1573 . . . 3470 3549 2818 Kills 85 | . . . . . . . 1 . . . . 18 . . . 33 19 14 Allies Corrupted 1 | . . . . . . . . . . . . . . . . 1 . . Allies Melted . | . . . . . . . . . . . . . . . . . . . Intel | -11 -10 -10 -9 -9 -9 -8 -8 -8 -8 -8 -7 -7 -7 -7 -6 -6 -6 -5 ------- Run | Jun Mat Min Mat Min Exi Min Mat Gar Mat Gar Fac Gar Fac Gar Fac Ext Cet Fac Robot Analysis Total . | . . . . . . . . . . . . . . . . . . . Derelict Logs Recovered 3 | . . 2 . 1 . . . . . . . . . . . . . . Drone Launches 5 | . . . . 1 . . . . . . 3 1 . . . . . . Drone Recoveries 5 | . . . . . . . 1 . . . 3 1 . . . . . . Exploration | -11 -10 -10 -9 -9 -9 -8 -8 -8 -8 -8 -7 -7 -7 -7 -6 -6 -6 -5 ------------- Run | Jun Mat Min Mat Min Exi Min Mat Gar Mat Gar Fac Gar Fac Gar Fac Ext Cet Fac Turns Passed 16226 | 66 35 311 345 786 749 105 1711 1893 272 1839 1208 1762 76 1647 996 1224 704 497 Spaces Moved 8213 | 49 30 193 172 438 392 56 890 916 111 667 660 1105 62 748 515 576 363 270 Core 8 | 6 . . . . . . . 2 . . . . . . . . . . Treads 2151 | . . . 56 3 . . . . . . . . . 673 225 561 363 270 Legs 4591 | 43 30 193 116 435 392 56 890 914 111 667 371 236 62 75 . . . . Wheels 1463 | . . . . . . . . . . . 289 869 . . 290 15 . . Hover . | . . . . . . . . . . . . . . . . . . . Flight . | . . . . . . . . . . . . . . . . . . . Fastest Speed 50 | 50 120 120 120 120 190 190 120 122 192 190 105 105 117 117 135 160 160 160 Average Speed 152 | 111 120 120 136 163 190 190 128 159 192 199 157 115 117 155 150 165 160 160 Slowest Speed 900 | 120 120 120 190 240 190 190 195 900 192 260 190 260 117 189 195 240 160 160 Overloaded Moves . | . . . . . . . . . . . . . . . . . . . Propulsion Burnouts . | . . . . . . . . . . . . . . . . . . . Robots Hopped . | . . . . . . . . . . . . . . . . . . . Cave-ins Triggered . | . . . . . . . . . . . . . . . . . . . Exploration Rate (%) 47 | 4 14 53 28 98 78 36 62 92 14 69 21 89 3 74 15 64 77 8 Regions Visited 18 Branch Regions 6 Pre-discovered Areas 1 | . . . . . 1 . . . . . . . . . . . . . Known Exits Taken 5 | . . . . . . 1 1 . 1 . 1 . 1 . . . . . Unknown Exits Taken 9 | 1 1 1 1 1 1 . . . . . . . . . 1 1 1 . Scrap Searched 1 | . . . . 1 . . . . . . . . . . . . . . Spaces Dug 39 | . . . . . . . . 8 . . 1 7 . 6 2 15 . . Terrain Destroyed 378 | . . . . . . . 10 42 1 42 2 7 . 37 107 123 . 7 Melee 13 | . . . . . . . . . . . . 7 . 6 . . . . Projectile 60 | . . . . . . . 10 32 1 . 2 . . 1 7 . . 7 AOE 305 | . . . . . . . . 10 . 42 . . . 30 100 123 . . Terrain Rammed . | . . . . . . . . . . . . . . . . . . . Walls Destroyed . | . . . . . . . . . . . . . . . . . . . Machines Disabled . | . . . . . . . . . . . . . . . . . . . Actions | -11 -10 -10 -9 -9 -9 -8 -8 -8 -8 -8 -7 -7 -7 -7 -6 -6 -6 -5 --------- Run | Jun Mat Min Mat Min Exi Min Mat Gar Mat Gar Fac Gar Fac Gar Fac Ext Cet Fac Total 10724 | 57 29 230 230 469 399 55 1295 1215 151 1127 779 1427 65 1039 623 763 475 296 Wait 1188 | . . . . 7 . . 235 148 14 379 26 96 . 127 13 59 84 . Move 8198 | 48 29 192 171 437 391 55 890 915 111 665 660 1104 62 747 514 575 362 270 Hop . | . . . . . . . . . . . . . . . . . . . Pick Up 85 | 3 . 5 5 1 4 . 19 9 2 2 12 7 1 5 2 3 4 1 Fast Attach 100 | 6 . . 12 1 . . 13 11 2 2 8 12 1 14 6 4 5 3 Attach 42 | . . . 1 2 . . 8 7 1 5 3 5 . 2 2 4 1 1 Detach 25 | . . . 3 . . . 1 5 . 2 1 5 . 3 . 1 3 1 Swap 78 | . . 2 1 1 . . 10 3 3 1 16 15 . 17 2 6 1 . Drop 111 | . . 2 9 . 4 . 22 9 5 . 21 11 1 18 4 1 3 1 Fire 691 | . . 26 28 19 . . 88 84 12 51 30 67 . 99 78 78 12 19 Melee 34 | . . . . . . . . 7 . . . 19 . 7 1 . . . Ram 1 | . . . . . . . . . . . . 1 . . . . . . Kick 18 | . . 3 . 1 . . 9 2 1 . 2 . . . . . . . Crush 1 | . . . . . . . . . . . . . . . 1 . . . Escape Stasis 121 | . . . . . . . . 15 . 20 . 85 . . . 1 . . Rewire 31 | . . . . . . . . . . . . . . . . 31 . . Trap . | . . . . . . . . . . . . . . . . . . . Miscellaneous . | . . . . . . . . . . . . . . . . . . . Route ------- -11/Junkyard -10/Materials -10/Mines -9/Materials -9/Mines (discovered 3 exits: *Mat x2 / *Exi) -9/Exiles (discovered 2 exits: [*Min x2]) -8/Mines -8/Materials (discovered 2 exits: *Fac / Gar) -8/Garrison (discovered 4 exits: *Mat x4) -8/Materials -8/Garrison (discovered 3 exits: *Fac x3) -7/Factory (discovered 3 exits: Sto / [*Low] / Gar) -7/Garrison (discovered 3 exits: *Fac x3) -7/Factory -7/Garrison (discovered 3 exits: *Fac x3) -6/Factory -6/Extension (discovered 2 exits: [*Fac] / *Cet) -6/Cetus (discovered 2 exits: [*Fac] / [*Arc]) -5/Factory History --------- Turn | Location | Event 4 | -11/Junkyard | Discovered new exit (range 15) 67 | -11/Junkyard | Entered Materials 84 | -10/Materials | Discovered new exit (range 16) 102 | -10/Materials | Entered Mines 241 | -10/Mines | Learned 2 Materials zone layouts 318 | -10/Mines | Build established: Mutant 348 | -10/Mines | Found a hidden stash of uninstalled traps 401 | -10/Mines | Discovered new exit (range 9) 413 | -10/Mines | Entered Materials 413 | -9/Materials | Evolved 2 slots: Propulsion x1, Utility x1 610 | -9/Materials | Lost 3 parts (1p2n) 716 | -9/Materials | Discovered new exit (range 7) 758 | -9/Materials | Entered Mines 809 | -9/Mines | Discovered new exit (range 10) 1013 | -9/Mines | Learned 2 Materials zone layouts 1031 | -9/Mines | Found the Drone Emporium 1036 | -9/Mines | Found Prototype Device 1036 | -9/Mines | Identified Sensor Drone Bay 1095 | -9/Mines | Build established: Scavenger-Mutant 1168 | -9/Mines | Discovered new exit (range 9) 1183 | -9/Mines | Assisted by bots powering up and referring to "LRC-V3" 1183 | -9/Mines | Identified exit to Materials 1536 | -9/Mines | Deemed a non-threat by the Exiles lab entrance 1536 | -9/Mines | Discovered new exit (range 5) 1544 | -9/Mines | Entered Exiles 1544 | -9/Exiles | Accompanied by 4 allies 1573 | -9/Exiles | Discovered new exit (range 15) 1596 | -9/Exiles | Met 8R-AWN 1622 | -9/Exiles | Met EX-HEX 1674 | -9/Exiles | Met EX-BIN 1708 | -9/Exiles | Aligned with FarCom system 1710 | -9/Exiles | Given EX-Vault access code 1755 | -9/Exiles | Opened EX-Vault 1772 | -9/Exiles | Found Trap Reconfigurator 1779 | -9/Exiles | Found Deploy-a-Sentry 1782 | -9/Exiles | Found Deploy-a-Sentry 1785 | -9/Exiles | Found Deploy-a-Sentry 1826 | -9/Exiles | Warned to stay clear of 0b10 Research branches 1889 | -9/Exiles | Met EX-DEC 1900 | -9/Exiles | Learned location of Zion (-7) 2045 | -9/Exiles | Visited The Gauntlet 2271 | -9/Exiles | Discovered new exit (range 14) 2293 | -9/Exiles | Stole two prototypes: Trap Reconfigurator, Deploy-a-Sentry 2293 | -9/Exiles | Entered Mines 2293 | -8/Mines | Accompanied by 4 allies 2375 | -8/Mines | Discovered exit to Materials (range 12) 2398 | -8/Mines | Entered Materials 2398 | -8/Materials | Accompanied by 4 allies 2398 | -8/Materials | Evolved 2 slots: Propulsion x1, Utility x1 3331 | -8/Materials | Lost 8 parts (1p4n2u1w) 3672 | -8/Materials | Discovered new exit (range 16) 4109 | -8/Materials | Identified exit to Garrison 4109 | -8/Materials | Entered Garrison 4205 | -8/Garrison | Garrison Relay disabled 4276 | -8/Garrison | Triggered checkpoint 4479 | -8/Garrison | Discovered new exit (range 5) 4514 | -8/Garrison | Core integrity fell below 50% 4889 | -8/Garrison | Garrison Relay disabled 4918 | -8/Garrison | Triggered checkpoint 4926 | -8/Garrison | Garrison Relay disabled 5150 | -8/Garrison | Triggered checkpoint 5267 | -8/Garrison | Discovered new exit (range 15) 5334 | -8/Garrison | Triggered checkpoint 5418 | -8/Garrison | Triggered checkpoint 5491 | -8/Garrison | Discovered new exit (range 6) 5521 | -8/Garrison | Garrison Relay disabled 5917 | -8/Garrison | Installed Relay Interface Framework 5966 | -8/Garrison | Triggered checkpoint 5975 | -8/Garrison | Discovered new exit (range 15) 6002 | -8/Garrison | Entered Materials 6135 | -8/Materials | Garrison activated, responded to threat 6274 | -8/Materials | Identified exit to Garrison 6274 | -8/Materials | Entered Garrison 6394 | -8/Garrison | Triggered checkpoint 6622 | -8/Garrison | Triggered checkpoint 6622 | -8/Garrison | Triggered checkpoint 6996 | -8/Garrison | Triggered checkpoint 7072 | -8/Garrison | Discovered new exit (range 8) 7144 | -8/Garrison | Triggered checkpoint 7728 | -8/Garrison | Discovered new exit (range 11) 8058 | -8/Garrison | Discovered new exit (range 12) 8075 | -8/Garrison | Expanded RIF knowledge: Signal Jamming 8113 | -8/Garrison | Entered Factory 8113 | -7/Factory | Evolved 2 slots: Propulsion x1, Utility x1 8114 | -7/Factory | Identified exit to Storage 8115 | -7/Factory | FarCom data flow suspended 8561 | -7/Factory | Build established: Mutant 9243 | -7/Factory | Discovered new exit (range 8) 9321 | -7/Factory | Identified exit to Garrison 9321 | -7/Factory | Entered Garrison 9382 | -7/Garrison | Triggered checkpoint 9467 | -7/Garrison | Garrison Relay disabled 9596 | -7/Garrison | Triggered checkpoint 9666 | -7/Garrison | Triggered checkpoint 9759 | -7/Garrison | Discovered new exit (range 10) 9779 | -7/Garrison | Found embedded Infiltrators 9810 | -7/Garrison | Triggered checkpoint 9831 | -7/Garrison | Garrison Relay disabled 9912 | -7/Garrison | Triggered checkpoint 9919 | -7/Garrison | Triggered checkpoint 10054 | -7/Garrison | Triggered checkpoint 10079 | -7/Garrison | Discovered new exit (range 12) 10172 | -7/Garrison | Garrison Relay disabled 10262 | -7/Garrison | Garrison Relay disabled 10472 | -7/Garrison | Garrison Relay disabled 10530 | -7/Garrison | Discovered new exit (range 11) 10561 | -7/Garrison | Expanded RIF knowledge: Robot Detection 10702 | -7/Garrison | Lost 7 parts (1p4n1u1w) 10764 | -7/Garrison | Found Quantum Capacitor 10780 | -7/Garrison | Build established: Bothacker-Mutant 11060 | -7/Garrison | Triggered checkpoint 11083 | -7/Garrison | Entered Factory 11159 | -7/Factory | Identified exit to Garrison 11159 | -7/Factory | Entered Garrison 11236 | -7/Garrison | Triggered checkpoint 11518 | -7/Garrison | Garrison Relay disabled 11622 | -7/Garrison | Triggered checkpoint 11628 | -7/Garrison | Triggered checkpoint 11664 | -7/Garrison | Core integrity fell below 50% 11688 | -7/Garrison | Destroyed 9 combat bots 11721 | -7/Garrison | Discovered new exit (range 68) 11721 | -7/Garrison | Discovered new exit (range 31) 11721 | -7/Garrison | Discovered new exit (range 24) 11924 | -7/Garrison | Triggered checkpoint 11939 | -7/Garrison | Garrison Relay disabled 12015 | -7/Garrison | Heavy support dispatched to Factory 12038 | -7/Garrison | Expanded RIF knowledge: Program Shield 12157 | -7/Garrison | Heavy support dispatched to Factory 12328 | -7/Garrison | Triggered checkpoint 12472 | -7/Garrison | H-XX Assembler disabled 12767 | -7/Garrison | Expanded RIF knowledge: Autoassimilate 12806 | -7/Garrison | Entered Factory 12806 | -6/Factory | Evolved 2 slots: Utility x2 13229 | -6/Factory | Garrison activated, responded to threat 13718 | -6/Factory | Destroyed 8 combat bots 13718 | -6/Factory | Lost 3 parts (1n1u1w) 13795 | -6/Factory | Discovered new exit (range 6) 13802 | -6/Factory | Entered Extension 13979 | -6/Extension | Rescued a captive Derelict 14001 | -6/Extension | Rescued a captive Derelict 14004 | -6/Extension | Rescued a captive Derelict 14152 | -6/Extension | First assault squad dispatched 14374 | -6/Extension | Rescued a captive Derelict 14384 | -6/Extension | Rescued a captive Derelict 14621 | -6/Extension | Rescued A7 14651 | -6/Extension | Rescued a captive Derelict 14987 | -6/Extension | Discovered new exit (range 10) 14989 | -6/Extension | Discovered new exit (range 6) 15023 | -6/Extension | Disrupted transfer network 15026 | -6/Extension | Entered Cetus 15026 | -6/Cetus | Accompanied by 16 allies (A7) 15031 | -6/Cetus | Acquired a Cetus Manufacturing Module code from A7 15059 | -6/Cetus | Spotted Cetus Guard 15059 | -6/Cetus | Spotted Cetus Guard 15059 | -6/Cetus | Allies destroyed Cetus Guard 15061 | -6/Cetus | Spotted Cetus Guard 15062 | -6/Cetus | Spotted Cetus Guard 15074 | -6/Cetus | Allies destroyed Cetus Guard 15079 | -6/Cetus | Destroyed Cetus Guard 15083 | -6/Cetus | Allies destroyed Cetus Guard 15167 | -6/Cetus | Escorted A7 to Cetus Mainframe 15185 | -6/Cetus | Started Cetus Manufacturing Module 15204 | -6/Cetus | Discovered new exit (range 15) 15210 | -6/Cetus | Manufactured an Enhanced Grunt 15235 | -6/Cetus | Manufactured an Enhanced Grunt 15235 | -6/Cetus | Spotted Cetus Guard 15235 | -6/Cetus | Spotted Cetus Guard 15239 | -6/Cetus | Spotted Cetus Guard 15241 | -6/Cetus | Spotted Cetus Guard 15246 | -6/Cetus | Allies destroyed Cetus Guard 15251 | -6/Cetus | Discovered new exit (range 16) 15258 | -6/Cetus | Allies destroyed Cetus Guard 15260 | -6/Cetus | Manufactured an Enhanced Grunt 15268 | -6/Cetus | Allies destroyed Cetus Guard 15285 | -6/Cetus | Manufactured an Enhanced Grunt 15285 | -6/Cetus | Met Revision 17 15291 | -6/Cetus | Lost 3 parts (1p1n1w) 15310 | -6/Cetus | Manufactured an Enhanced Grunt 15315 | -6/Cetus | System corruption reached 10% 15730 | -6/Cetus | Entered Factory 15730 | -5/Factory | Accompanied by 8 allies (A7) 15730 | -5/Factory | Evolved 2 slots: Power x1, Utility x1 15735 | -5/Factory | Received a hacking code to weaken MAIN.C 16030 | -5/Factory | First assault squad dispatched 16186 | -5/Factory | Garrison activated, responded to threat 16227 | -5/Factory | Self-destructed Last Messages --------------- 16178_ Wall collapses. 16179_ Chain reaction triggered in Antimatter Reactor. 16180_ X-77 Beamer destroyed. 16180_ M-28 Smith unfolds itself. 16182_ Penetrated by Slug. 16183_ Destroyed Phase Shifter. 16183_ Slug penetrates G-50 Soldier. 16185_ Slug penetrates Enhanced Grunt. 16186_ G-50 Soldier calls for garrison reinforcements. 16186_ ALERT: Activating Garrison Access F004. 16186_ Slug penetrates Wall. 16189_ Slug penetrates Enhanced Grunt. 16189_ Slug penetrates G-50 Soldier. 16192_ Slug penetrates Enhanced Grunt. 16192_ G-50 Soldier destroyed. 16195_ Slug penetrates Enhanced Grunt. 16195_ Enhanced Grunt destroyed. 16197_ Acquired 43 matter. 16198_ Slug penetrates Wall. 16225_ Critical hit (Burn: +50). Map ----- +----------------------------------------------------+ | ????????????????????????????????# =%! #???????? | | ????????????????????????????????# |!| +????#### | | ????????????????????############# !%! #????# | | ????????????????????# =* #????# | | ????????????????????# # ! #????# | | ????????????????????# #!%= #????# | | ????????????????????# #Y]% #????# | | ????????????????????# #%=% #????# | | ????????????????????# #!%! ##???# "" | | ????????????????????# !]% T#???# "" | | ????????????????????# % #???# | | ????????????????????# ##????### | | ????????????????????# # #???????? | | ????????????????????# # #???????? | | ????????????????????# # ######### | | ????????????????????###########;##gg ## | | ????????????????????????# ## " | | ????????????????????????# ## " | | ????????????????????????# !! ## " | | ???????????############## !! ## !! " | | ???????????# # ## !! " | | ???????????# # "" ## ! " | | ???????????# # "" *## " | | ???????????# ! """ # """ =%## " | | ???????????# """ # ** """ [[[#| " | | ???????????#! ][= """ #@ ** """ = %+! | | ???????????# ]= # ** ####[ | | ???????????# [= """ + #??### ####+ | | ???????????# """ # #?????/ ?? | | ???????????# """ # ##### #?????? ? | | ???????????# ! # #???# #??????? | | ???????????# + ^ #???# #???????? "" | | ???????????#################/##+#???# #???????? "" | | ????????????????????????????t ??????? #?????????"" | | ???????????????????????????? ??????? ??????????? | | ???????????????????????????? ?????? ???????????? | | ?????????????????????????????" ?????? ???????????? | | ?????????????????????????????" ????? ???????????? | | ??????????????????????????????? ?????????????????? | | ?????????????????????????????????????????????????? | | ?????????????????????????????????????????????????? | | ?????????????????????????????????????????????????? | | ?????????????????????????????????????????????????? | | ?????????????????????????????????????????????????? | | ?????????????????????????????????????????????????? | | ?????????????????????????????????????????????????? | | ?????????????????????????????????????????????????? | | | | | | | +----------------------------------------------------+ Best States ------------- Heat Dissipation 67 Energy Generation 35 Energy Capacity 400 Matter Stores 300 Matter Capacity 300 Sight Range 16 Terrain Scan Density 10 Jamming Range 16 Additional Mass Support 12 Armor Coverage 600 Evasion (%) 55 Targeting Accuracy 8 Core Analysis 6 Recoil Reduction 5 Energy Filtering 30 Relay Coupler Types 2 Relay Coupler Value 55 Item Schematics ----------------- None Robot Schematics ------------------ None Fabricated ------------ Nothing Alien Tech Used ----------------- None Achievements -------------- None Challenges ------------ None Game ------ Seed BiomechanicalFluxProcessor Manual? 0 Play Time 02:19:11 Cumulative 401.8 hours Start 2023.11.21 @ 08:44:33 End 2023.12.02 @ 21:17:38 Sessions 4 Manual Loads 0 Difficulty Rogue Special Mode None Game No. 160 Rogue 144 Adventurer 8 Explorer 8 Win Type - Total 33 Types 12/1/13/1/1/2/3/0/0 Lore% 92 Gallery% 89 Achievement% 80 Wizard Run 0 Options --------- ASCII 1 Keyboard 1 Movement Vi Keybinds 0 Fullscreen 2 Font 18/SmallcapsGlow Map View 76x50 Tactical HUD 1 Map Filters NONE Filters NONE Steam 0 RUN: 984ce9ba-869d-4e36-806d-fb6c22b46183